[Event "Titled Tuesday Blitz April 12 Early 2022"]
[White "Ovezdurdyyeva, Jemal"]
[Black "Sadykov, Ramil"]
[WhiteFideId "14001888"]
[BlackFideId "24113590"]
[WhiteElo "1946"]
[BlackElo "2300"]
[Result "1-0"]
[Round "04"]
[TimeControl "180+1"]
[Date "2022.04.13"]
[WhiteClock "0:00:09"]
[BlackClock "0:00:03"]

1. e4 {[%clk 0:03:00]}  e5 {[%clk 0:02:58]} 2. Nf3 {[%clk 0:03:00]}  Nf6 {[%clk 0:02:58]} 3. Nxe5 {[%clk 0:02:57]}  Nxe4 {[%clk 0:02:56]} 4. Qe2 {[%clk 0:02:52]}  Qe7 {[%clk 0:02:54]} 5. Qxe4 {[%clk 0:02:50]}  d6 {[%clk 0:02:53]} 6. d4 {[%clk 0:02:49]}  dxe5 {[%clk 0:02:53]} 7. dxe5 {[%clk 0:02:49]}  Nc6 {[%clk 0:02:50]} 8. Bb5 {[%clk 0:02:44]}  Bd7 {[%clk 0:02:47]} 9. O-O {[%clk 0:02:34]}  O-O-O {[%clk 0:02:47]} 10. Nc3 {[%clk 0:02:16]}  a6 {[%clk 0:02:43]} 11. Ba4 {[%clk 0:02:10]}  Nxe5 {[%clk 0:02:30]} 12. Be3 {[%clk 0:01:52]}  Bxa4 {[%clk 0:02:03]} 13. Nxa4 {[%clk 0:01:50]}  Nc6 {[%clk 0:01:44]} 14. Qc4 {[%clk 0:01:44]}  Qb4 {[%clk 0:01:41]} 15. Qxb4 {[%clk 0:01:39]}  Bxb4 {[%clk 0:01:41]} 16. c3 {[%clk 0:01:40]}  Bd6 {[%clk 0:01:34]} 17. Nc5 {[%clk 0:01:36]}  Rhe8 {[%clk 0:01:27]} 18. Nb3 {[%clk 0:01:22]}  Ne5 {[%clk 0:01:14]} 19. Bd4 {[%clk 0:01:19]}  f6 {[%clk 0:01:14]} 20. Nd2 {[%clk 0:01:12]}  Nd3 {[%clk 0:01:02]} 21. Nc4 {[%clk 0:01:02]}  Re2 {[%clk 0:00:56]} 22. Nxd6+ {[%clk 0:00:54]}  Rxd6 {[%clk 0:00:53]} 23. b3 {[%clk 0:00:54]}  Rc2 {[%clk 0:00:42]} 24. Rfd1 {[%clk 0:00:39]}  Nf4 {[%clk 0:00:36]} 25. Kf1 {[%clk 0:00:33]}  b6 {[%clk 0:00:34]} 26. Rdc1 {[%clk 0:00:29]}  Rxc1+ {[%clk 0:00:30]} 27. Rxc1 {[%clk 0:00:30]}  c5 {[%clk 0:00:29]} 28. Be3 {[%clk 0:00:29]}  Nd5 {[%clk 0:00:28]} 29. Ke2 {[%clk 0:00:18]}  Kd7 {[%clk 0:00:27]} 30. Bd2 {[%clk 0:00:17]}  Kc6 {[%clk 0:00:24]} 31. c4 {[%clk 0:00:17]}  Ne7 {[%clk 0:00:23]} 32. Be3 {[%clk 0:00:16]}  Nf5 {[%clk 0:00:21]} 33. Bf4 {[%clk 0:00:17]}  Nd4+ {[%clk 0:00:20]} 34. Kd3 {[%clk 0:00:14]}  Rd7 {[%clk 0:00:19]} 35. Ke4 {[%clk 0:00:12]}  Re7+ {[%clk 0:00:14]} 36. Kd3 {[%clk 0:00:09]}  Re2 {[%clk 0:00:15]} 37. Be3 {[%clk 0:00:08]}  Rxa2 {[%clk 0:00:13]} 38. Bxd4 {[%clk 0:00:09]}  cxd4 {[%clk 0:00:14]} 39. Kxd4 {[%clk 0:00:10]}  Rxf2 {[%clk 0:00:13]} 40. Re1 {[%clk 0:00:09]}  Rxg2 {[%clk 0:00:13]} 41. Re6+ {[%clk 0:00:10]}  Kd7 {[%clk 0:00:11]} 42. Rxb6 {[%clk 0:00:09]}  Rxh2 {[%clk 0:00:11]} 43. Rb7+ {[%clk 0:00:10]}  Kc6 {[%clk 0:00:09]} 44. Rxg7 {[%clk 0:00:10]}  a5 {[%clk 0:00:07]} 45. Rf7 {[%clk 0:00:10]}  Rh4+ {[%clk 0:00:06]} 46. Kc3 {[%clk 0:00:09]}  Rf4 {[%clk 0:00:06]} 47. Rxh7 {[%clk 0:00:08]}  f5 {[%clk 0:00:05]} 48. Rf7 {[%clk 0:00:07]}  Kb6 {[%clk 0:00:03]} 49. Kb2 {[%clk 0:00:06]}  Rf2+ {[%clk 0:00:02]} 50. Ka3 {[%clk 0:00:07]}  f4 {[%clk 0:00:03]} 51. Rf6+ {[%clk 0:00:07]}  Kb7 {[%clk 0:00:03]} 52. Ka4 {[%clk 0:00:07]}  f3 {[%clk 0:00:01]} 53. Kxa5 {[%clk 0:00:07]}  Kc7 {[%clk 0:00:02]} 54. Kb5 {[%clk 0:00:07]}  Kd7 {[%clk 0:00:02]} 55. b4 {[%clk 0:00:08]}  Ke7 {[%clk 0:00:02]} 56. Rf4 {[%clk 0:00:08]}  Ke6 {[%clk 0:00:03]} 57. c5 {[%clk 0:00:09]}  Ke5 {[%clk 0:00:02]} 58. Rf8 {[%clk 0:00:09]}  Ke4 {[%clk 0:00:02]} 59. c6 {[%clk 0:00:09]}  Rd2 {[%clk 0:00:02]} 60. c7 {[%clk 0:00:08]}  Rd5+ {[%clk 0:00:03]} 61. Kb6 {[%clk 0:00:09]} 1-0


[Site "https://www.chess.com"]

[Event "Titled Tuesday Blitz April 12 Early 2022"]
[White "Pesotskiy, Mikhail"]
[Black "Hasangatin, Ramil"]
[WhiteFideId "34164453"]
[BlackFideId "4122160"]
[WhiteElo "2010"]
[BlackElo "2375"]
[Result "1-0"]
[Round "04"]
[TimeControl "180+1"]
[Date "2022.04.13"]
[WhiteClock "0:00:10"]
[BlackClock "0:00:37"]

1. d4 {[%clk 0:02:59]}  Nf6 {[%clk 0:02:59]} 2. c4 {[%clk 0:03:00]}  d6 {[%clk 0:03:00]} 3. Nc3 {[%clk 0:03:00]}  e5 {[%clk 0:03:00]} 4. d5 {[%clk 0:03:00]}  a5 {[%clk 0:02:59]} 5. e4 {[%clk 0:03:01]}  Na6 {[%clk 0:02:59]} 6. f3 {[%clk 0:03:01]}  Be7 {[%clk 0:03:00]} 7. Be3 {[%clk 0:03:02]}  Nh5 {[%clk 0:03:00]} 8. Qd2 {[%clk 0:03:03]}  h6 {[%clk 0:03:00]} 9. Bd3 {[%clk 0:02:45]}  Bg5 {[%clk 0:02:59]} 10. Nge2 {[%clk 0:02:46]}  Bxe3 {[%clk 0:02:59]} 11. Qxe3 {[%clk 0:02:47]}  Qg5 {[%clk 0:02:59]} 12. Qf2 {[%clk 0:02:39]}  Nb4 {[%clk 0:02:53]} 13. Bb1 {[%clk 0:02:37]}  O-O {[%clk 0:02:52]} 14. h4 {[%clk 0:02:30]}  Qf6 {[%clk 0:02:45]} 15. a3 {[%clk 0:02:19]}  Na6 {[%clk 0:02:45]} 16. Bc2 {[%clk 0:02:19]}  Bd7 {[%clk 0:02:44]} 17. O-O-O {[%clk 0:02:15]}  Nf4 {[%clk 0:02:39]} 18. Nxf4 {[%clk 0:02:09]}  exf4 {[%clk 0:02:34]} 19. g4 {[%clk 0:02:01]}  Qe5 {[%clk 0:02:22]} 20. g5 {[%clk 0:01:41]}  h5 {[%clk 0:02:21]} 21. Qd4 {[%clk 0:01:33]}  Rab8 {[%clk 0:02:13]} 22. Qxe5 {[%clk 0:01:21]}  dxe5 {[%clk 0:02:13]} 23. Ba4 {[%clk 0:01:22]}  Rfd8 {[%clk 0:02:06]} 24. Bxd7 {[%clk 0:01:22]}  Rxd7 {[%clk 0:02:06]} 25. Kc2 {[%clk 0:01:21]}  g6 {[%clk 0:01:47]} 26. Rb1 {[%clk 0:01:05]}  c5 {[%clk 0:01:41]} 27. Na2 {[%clk 0:00:46]}  b5 {[%clk 0:01:41]} 28. cxb5 {[%clk 0:00:46]}  Rxb5 {[%clk 0:01:40]} 29. Nc3 {[%clk 0:00:47]}  Rbb7 {[%clk 0:01:39]} 30. b3 {[%clk 0:00:43]}  Kf8 {[%clk 0:01:27]} 31. Rhc1 {[%clk 0:00:40]}  Ke7 {[%clk 0:01:27]} 32. Kd3 {[%clk 0:00:39]}  Kd6 {[%clk 0:01:27]} 33. Na4 {[%clk 0:00:39]}  Rdc7 {[%clk 0:01:24]} 34. Rc3 {[%clk 0:00:35]}  Kd7 {[%clk 0:01:03]} 35. Kc2 {[%clk 0:00:28]}  Ke7 {[%clk 0:00:58]} 36. Nb2 {[%clk 0:00:28]}  f6 {[%clk 0:00:58]} 37. gxf6+ {[%clk 0:00:26]}  Kxf6 {[%clk 0:00:58]} 38. Nc4 {[%clk 0:00:27]}  a4 {[%clk 0:00:42]} 39. bxa4 {[%clk 0:00:28]}  Nb4+ {[%clk 0:00:42]} 40. Kd2 {[%clk 0:00:15]}  Na6 {[%clk 0:00:42]} 41. Rcb3 {[%clk 0:00:14]}  Rxb3 {[%clk 0:00:39]} 42. Rxb3 {[%clk 0:00:15]}  Ra7 {[%clk 0:00:39]} 43. Rb6+ {[%clk 0:00:13]}  Kg7 {[%clk 0:00:39]} 44. Nxe5 {[%clk 0:00:13]}  Kh7 {[%clk 0:00:39]} 45. Nxg6 {[%clk 0:00:12]}  Nc7 {[%clk 0:00:39]} 46. Nxf4 {[%clk 0:00:12]}  Rxa4 {[%clk 0:00:38]} 47. Rb7 {[%clk 0:00:10]}  Rxa3 {[%clk 0:00:39]} 48. Rxc7+ {[%clk 0:00:10]}  Kh6 {[%clk 0:00:40]} 49. d6 {[%clk 0:00:10]}  c4 {[%clk 0:00:39]} 50. d7 {[%clk 0:00:10]}  c3+ {[%clk 0:00:37]} 51. Rxc3 {[%clk 0:00:10]}  Ra8 {[%clk 0:00:37]} 52. Rd3 {[%clk 0:00:10]}  Rd8 {[%clk 0:00:37]} 53. Ne6 {[%clk 0:00:10]} 1-0


[Site "https://www.chess.com"]

[Event "Titled Tuesday Blitz April 12 Early 2022"]
[White "Plazuelo Pascual, Juan"]
[Black "Palachev, Petr"]
[WhiteFideId "32059566"]
[BlackFideId "24129003"]
[WhiteElo "2359"]
[BlackElo "2339"]
[Result "0-1"]
[Round "04"]
[TimeControl "180+1"]
[Date "2022.04.13"]
[WhiteClock "0:00:03"]
[BlackClock "0:00:10"]

1. e4 {[%clk 0:03:00]}  c5 {[%clk 0:02:56]} 2. Nf3 {[%clk 0:03:01]}  Nc6 {[%clk 0:02:56]} 3. d4 {[%clk 0:03:00]}  cxd4 {[%clk 0:02:57]} 4. Nxd4 {[%clk 0:03:01]}  g6 {[%clk 0:02:57]} 5. c4 {[%clk 0:03:01]}  Nf6 {[%clk 0:02:56]} 6. Nc3 {[%clk 0:03:01]}  d6 {[%clk 0:02:57]} 7. Be2 {[%clk 0:03:00]}  Bg7 {[%clk 0:02:57]} 8. Be3 {[%clk 0:03:01]}  O-O {[%clk 0:02:58]} 9. O-O {[%clk 0:03:01]}  Bd7 {[%clk 0:02:59]} 10. h3 {[%clk 0:03:01]}  Nxd4 {[%clk 0:02:55]} 11. Bxd4 {[%clk 0:03:02]}  Bc6 {[%clk 0:02:55]} 12. Qc2 {[%clk 0:03:03]}  Nd7 {[%clk 0:02:56]} 13. Bxg7 {[%clk 0:02:58]}  Kxg7 {[%clk 0:02:57]} 14. b4 {[%clk 0:02:58]}  Nf6 {[%clk 0:02:44]} 15. a3 {[%clk 0:02:48]}  Rc8 {[%clk 0:02:41]} 16. Qb2 {[%clk 0:02:28]}  Kg8 {[%clk 0:02:33]} 17. Bd3 {[%clk 0:02:28]}  a5 {[%clk 0:02:27]} 18. f4 {[%clk 0:02:25]}  axb4 {[%clk 0:02:25]} 19. axb4 {[%clk 0:02:25]}  Qb6+ {[%clk 0:02:26]} 20. Kh2 {[%clk 0:02:24]}  Ra8 {[%clk 0:02:06]} 21. Rad1 {[%clk 0:02:05]}  Rfd8 {[%clk 0:01:59]} 22. Bc2 {[%clk 0:02:00]}  Qa7 {[%clk 0:01:55]} 23. Rd2 {[%clk 0:01:51]}  Qa3 {[%clk 0:01:54]} 24. Qxa3 {[%clk 0:01:44]}  Rxa3 {[%clk 0:01:54]} 25. Rf3 {[%clk 0:01:45]}  Rda8 {[%clk 0:01:45]} 26. Re3 {[%clk 0:01:26]}  Ne8 {[%clk 0:01:21]} 27. Rde2 {[%clk 0:01:18]}  h5 {[%clk 0:01:16]} 28. e5 {[%clk 0:00:36]}  dxe5 {[%clk 0:01:16]} 29. fxe5 {[%clk 0:00:36]}  e6 {[%clk 0:01:13]} 30. Be4 {[%clk 0:00:32]}  Bxe4 {[%clk 0:01:10]} 31. Nxe4 {[%clk 0:00:32]}  Kf8 {[%clk 0:01:07]} 32. c5 {[%clk 0:00:30]}  Ke7 {[%clk 0:01:04]} 33. Rxa3 {[%clk 0:00:18]}  Rxa3 {[%clk 0:01:05]} 34. Rb2 {[%clk 0:00:18]}  Re3 {[%clk 0:01:00]} 35. Nd6 {[%clk 0:00:18]}  Nxd6 {[%clk 0:00:54]} 36. exd6+ {[%clk 0:00:19]}  Kd7 {[%clk 0:00:54]} 37. Kg1 {[%clk 0:00:10]}  Rc3 {[%clk 0:00:45]} 38. Kf2 {[%clk 0:00:10]}  h4 {[%clk 0:00:45]} 39. Ke2 {[%clk 0:00:10]}  e5 {[%clk 0:00:45]} 40. Kd2 {[%clk 0:00:09]}  Rc4 {[%clk 0:00:45]} 41. Kd3 {[%clk 0:00:08]}  Rd4+ {[%clk 0:00:45]} 42. Kc3 {[%clk 0:00:07]}  b6 {[%clk 0:00:39]} 43. Ra2 {[%clk 0:00:05]}  bxc5 {[%clk 0:00:39]} 44. bxc5 {[%clk 0:00:06]}  Kc6 {[%clk 0:00:39]} 45. Ra7 {[%clk 0:00:04]}  Kxc5 {[%clk 0:00:38]} 46. Rxf7 {[%clk 0:00:03]}  Rxd6 {[%clk 0:00:34]} 47. Rh7 {[%clk 0:00:03]}  Ra6 {[%clk 0:00:25]} 48. Rxh4 {[%clk 0:00:03]}  Ra3+ {[%clk 0:00:26]} 49. Kb2 {[%clk 0:00:03]}  Rg3 {[%clk 0:00:25]} 50. Re4 {[%clk 0:00:03]}  Rxg2+ {[%clk 0:00:25]} 51. Kc3 {[%clk 0:00:03]}  Rg3+ {[%clk 0:00:24]} 52. Kd2 {[%clk 0:00:03]}  Kd5 {[%clk 0:00:24]} 53. Rh4 {[%clk 0:00:04]}  g5 {[%clk 0:00:22]} 54. Rh8 {[%clk 0:00:03]}  Ke4 {[%clk 0:00:23]} 55. Ke2 {[%clk 0:00:03]}  Rg2+ {[%clk 0:00:23]} 56. Kf1 {[%clk 0:00:04]}  Rh2 {[%clk 0:00:20]} 57. Kg1 {[%clk 0:00:02]}  Ra2 {[%clk 0:00:18]} 58. Rf8 {[%clk 0:00:03]}  Ra7 {[%clk 0:00:12]} 59. Kg2 {[%clk 0:00:03]}  Rg7 {[%clk 0:00:12]} 60. Kg3 {[%clk 0:00:03]}  Ke3 {[%clk 0:00:09]} 61. Kg4 {[%clk 0:00:04]}  e4 {[%clk 0:00:10]} 62. Re8 {[%clk 0:00:04]}  Kd3 {[%clk 0:00:09]} 63. Rd8+ {[%clk 0:00:04]}  Ke2 {[%clk 0:00:10]} 64. Ra8 {[%clk 0:00:02]}  Rd7 {[%clk 0:00:04]} 65. Kxg5 {[%clk 0:00:02]}  Kf3 {[%clk 0:00:04]} 66. Rf8+ {[%clk 0:00:02]}  Kg3 {[%clk 0:00:04]} 67. Re8 {[%clk 0:00:03]}  Rd5+ {[%clk 0:00:04]} 68. Kf6 {[%clk 0:00:03]}  Kf3 {[%clk 0:00:04]} 69. h4 {[%clk 0:00:04]}  Rh5 {[%clk 0:00:05]} 70. Rf8 {[%clk 0:00:02]}  Rxh4 {[%clk 0:00:05]} 71. Kg5+ {[%clk 0:00:03]}  Kg3 {[%clk 0:00:05]} 72. Ra8 {[%clk 0:00:02]}  Rg4+ {[%clk 0:00:05]} 73. Kf5 {[%clk 0:00:03]}  Rf4+ {[%clk 0:00:05]} 74. Ke5 {[%clk 0:00:03]}  e3 {[%clk 0:00:06]} 75. Ra3 {[%clk 0:00:04]}  Rf3 {[%clk 0:00:06]} 76. Ke4 {[%clk 0:00:04]}  Kf2 {[%clk 0:00:07]} 77. Ra2+ {[%clk 0:00:04]}  e2 {[%clk 0:00:07]} 78. Rb2 {[%clk 0:00:01]}  Re3+ {[%clk 0:00:08]} 79. Kd4 {[%clk 0:00:01]}  Re8 {[%clk 0:00:08]} 80. Kd3 {[%clk 0:00:02]}  Kf1 {[%clk 0:00:08]} 81. Rb1+ {[%clk 0:00:02]}  e1=Q {[%clk 0:00:09]} 82. Rxe1+ {[%clk 0:00:03]}  Kxe1 {[%clk 0:00:10]} 0-1


[Site "https://www.chess.com"]

[Event "Titled Tuesday Blitz April 12 Early 2022"]
[White "Plotnikov, Pavel"]
[Black "Pakleza, Zbigniew"]
[WhiteFideId "4170342"]
[BlackFideId "1119290"]
[WhiteElo "2298"]
[BlackElo "2467"]
[Result "1/2-1/2"]
[Round "04"]
[TimeControl "180+1"]
[Date "2022.04.13"]
[WhiteClock "0:00:20"]
[BlackClock "0:00:27"]

1. e4 {[%clk 0:03:00]}  d6 {[%clk 0:03:00]} 2. d4 {[%clk 0:03:00]}  Nf6 {[%clk 0:03:00]} 3. Nc3 {[%clk 0:02:58]}  c6 {[%clk 0:03:01]} 4. a4 {[%clk 0:02:56]}  Nbd7 {[%clk 0:03:00]} 5. Nf3 {[%clk 0:02:55]}  e5 {[%clk 0:03:00]} 6. h3 {[%clk 0:02:46]}  Be7 {[%clk 0:02:59]} 7. Be3 {[%clk 0:02:46]}  O-O {[%clk 0:02:59]} 8. g4 {[%clk 0:02:45]}  Re8 {[%clk 0:02:49]} 9. Bg2 {[%clk 0:02:44]}  Qc7 {[%clk 0:02:43]} 10. O-O {[%clk 0:02:43]}  Nf8 {[%clk 0:02:42]} 11. Qd2 {[%clk 0:02:36]}  Ng6 {[%clk 0:02:40]} 12. Rad1 {[%clk 0:02:34]}  a6 {[%clk 0:02:34]} 13. Rfe1 {[%clk 0:02:30]}  b5 {[%clk 0:02:30]} 14. axb5 {[%clk 0:02:30]}  axb5 {[%clk 0:02:31]} 15. b3 {[%clk 0:02:29]}  Bf8 {[%clk 0:02:11]} 16. Bg5 {[%clk 0:02:16]}  Nd7 {[%clk 0:01:53]} 17. d5 {[%clk 0:02:01]}  b4 {[%clk 0:01:53]} 18. Ne2 {[%clk 0:02:01]}  cxd5 {[%clk 0:01:49]} 19. exd5 {[%clk 0:02:01]}  Qb8 {[%clk 0:01:18]} 20. Ng3 {[%clk 0:01:54]}  Ba6 {[%clk 0:00:53]} 21. Re4 {[%clk 0:01:44]}  Rc8 {[%clk 0:00:30]} 22. Rxb4 {[%clk 0:01:29]}  Qc7 {[%clk 0:00:30]} 23. c4 {[%clk 0:01:20]}  Nc5 {[%clk 0:00:30]} 24. Be3 {[%clk 0:01:05]}  Qa5 {[%clk 0:00:29]} 25. Bxc5 {[%clk 0:01:00]}  Qxc5 {[%clk 0:00:30]} 26. Ne4 {[%clk 0:00:58]}  Qc7 {[%clk 0:00:28]} 27. Ra1 {[%clk 0:00:56]}  Nf4 {[%clk 0:00:25]} 28. Rba4 {[%clk 0:00:53]}  Bb7 {[%clk 0:00:25]} 29. Bf1 {[%clk 0:00:43]}  Rab8 {[%clk 0:00:25]} 30. Nd4 {[%clk 0:00:38]}  Nxh3+ {[%clk 0:00:20]} 31. Bxh3 {[%clk 0:00:37]}  exd4 {[%clk 0:00:21]} 32. Qxd4 {[%clk 0:00:37]}  Re8 {[%clk 0:00:22]} 33. Bg2 {[%clk 0:00:30]}  Qd8 {[%clk 0:00:20]} 34. R4a2 {[%clk 0:00:23]}  Bc8 {[%clk 0:00:20]} 35. Ng3 {[%clk 0:00:22]}  Rxb3 {[%clk 0:00:19]} 36. Re2 {[%clk 0:00:19]}  Rxe2 {[%clk 0:00:16]} 37. Nxe2 {[%clk 0:00:19]}  g6 {[%clk 0:00:13]} 38. Ng3 {[%clk 0:00:19]}  Bg7 {[%clk 0:00:13]} 39. Qd1 {[%clk 0:00:18]}  Rxg3 {[%clk 0:00:12]} 40. fxg3 {[%clk 0:00:18]}  Bxa1 {[%clk 0:00:13]} 41. Qxa1 {[%clk 0:00:19]}  Bxg4 {[%clk 0:00:13]} 42. Qa7 {[%clk 0:00:16]}  h5 {[%clk 0:00:10]} 43. c5 {[%clk 0:00:16]}  dxc5 {[%clk 0:00:11]} 44. Qxc5 {[%clk 0:00:16]}  Kg7 {[%clk 0:00:11]} 45. d6 {[%clk 0:00:16]}  Be6 {[%clk 0:00:11]} 46. Qc3+ {[%clk 0:00:15]}  Qf6 {[%clk 0:00:11]} 47. Qd2 {[%clk 0:00:13]}  Qf5 {[%clk 0:00:09]} 48. Qd4+ {[%clk 0:00:13]}  Qf6 {[%clk 0:00:09]} 49. Qd2 {[%clk 0:00:13]}  h4 {[%clk 0:00:08]} 50. gxh4 {[%clk 0:00:13]}  Qxh4 {[%clk 0:00:07]} 51. d7 {[%clk 0:00:12]}  Qd8 {[%clk 0:00:08]} 52. Qd4+ {[%clk 0:00:12]}  Kg8 {[%clk 0:00:07]} 53. Bc6 {[%clk 0:00:12]}  Qg5+ {[%clk 0:00:07]} 54. Kf2 {[%clk 0:00:11]}  Qd8 {[%clk 0:00:05]} 55. Kf3 {[%clk 0:00:10]}  f6 {[%clk 0:00:04]} 56. Qd6 {[%clk 0:00:09]}  Kf7 {[%clk 0:00:05]} 57. Bd5 {[%clk 0:00:06]}  Bxd5+ {[%clk 0:00:05]} 58. Qxd5+ {[%clk 0:00:07]}  Ke7 {[%clk 0:00:06]} 59. Qe4+ {[%clk 0:00:06]}  Kf7 {[%clk 0:00:07]} 60. Qd5+ {[%clk 0:00:06]}  Ke7 {[%clk 0:00:07]} 61. Qe4+ {[%clk 0:00:06]}  Kxd7 {[%clk 0:00:08]} 62. Qxg6 {[%clk 0:00:07]}  Qe7 {[%clk 0:00:08]} 63. Qf5+ {[%clk 0:00:07]}  Ke8 {[%clk 0:00:07]} 64. Qc8+ {[%clk 0:00:07]}  Kf7 {[%clk 0:00:07]} 65. Qc4+ {[%clk 0:00:07]}  Kg7 {[%clk 0:00:07]} 66. Qg4+ {[%clk 0:00:08]}  Kf8 {[%clk 0:00:08]} 67. Qc8+ {[%clk 0:00:08]}  Kf7 {[%clk 0:00:08]} 68. Qc4+ {[%clk 0:00:08]}  Kg7 {[%clk 0:00:08]} 69. Qg4+ {[%clk 0:00:08]}  Kh6 {[%clk 0:00:08]} 70. Qh4+ {[%clk 0:00:08]}  Kg6 {[%clk 0:00:08]} 71. Qg4+ {[%clk 0:00:08]}  Kh7 {[%clk 0:00:09]} 72. Qh5+ {[%clk 0:00:08]}  Kg8 {[%clk 0:00:09]} 73. Qg4+ {[%clk 0:00:08]}  Kf8 {[%clk 0:00:09]} 74. Qc8+ {[%clk 0:00:07]}  Qe8 {[%clk 0:00:10]} 75. Qxe8+ {[%clk 0:00:07]}  Kxe8 {[%clk 0:00:11]} 76. Kf4 {[%clk 0:00:08]}  Kf7 {[%clk 0:00:11]} 77. Kf5 {[%clk 0:00:08]}  Kg7 {[%clk 0:00:12]} 78. Kf4 {[%clk 0:00:09]}  Kg6 {[%clk 0:00:12]} 79. Kg4 {[%clk 0:00:10]}  f5+ {[%clk 0:00:13]} 80. Kf4 {[%clk 0:00:11]}  Kf6 {[%clk 0:00:13]} 81. Kf3 {[%clk 0:00:12]}  Kg5 {[%clk 0:00:14]} 82. Kg3 {[%clk 0:00:12]}  Kg6 {[%clk 0:00:15]} 83. Kf3 {[%clk 0:00:13]}  Kf6 {[%clk 0:00:16]} 84. Kf4 {[%clk 0:00:14]}  Ke6 {[%clk 0:00:17]} 85. Kf3 {[%clk 0:00:14]}  Ke5 {[%clk 0:00:18]} 86. Ke3 {[%clk 0:00:15]}  f4+ {[%clk 0:00:19]} 87. Kf3 {[%clk 0:00:16]}  Kf5 {[%clk 0:00:19]} 88. Kf2 {[%clk 0:00:16]}  Ke4 {[%clk 0:00:20]} 89. Ke2 {[%clk 0:00:17]}  f3+ {[%clk 0:00:21]} 90. Kf2 {[%clk 0:00:17]}  Kf4 {[%clk 0:00:22]} 91. Kf1 {[%clk 0:00:18]}  Kg3 {[%clk 0:00:23]} 92. Kg1 {[%clk 0:00:18]}  Kg4 {[%clk 0:00:23]} 93. Kf2 {[%clk 0:00:19]}  Kf4 {[%clk 0:00:24]} 94. Kf1 {[%clk 0:00:19]}  Ke3 {[%clk 0:00:25]} 95. Ke1 {[%clk 0:00:20]}  Ke4 {[%clk 0:00:26]} 96. Kf2 {[%clk 0:00:20]}  Kf4 {[%clk 0:00:27]} 1/2-1/2


[Site "https://www.chess.com"]

[Event "Titled Tuesday Blitz April 12 Early 2022"]
[White "Potapova, Margarita"]
[Black "Skuhala, Barbara"]
[WhiteFideId "14126869"]
[BlackFideId "14605465"]
[WhiteElo "2216"]
[BlackElo "2155"]
[Result "1-0"]
[Round "04"]
[TimeControl "180+1"]
[Date "2022.04.13"]
[WhiteClock "0:00:07"]
[BlackClock "0:00:06"]

1. e4 {[%clk 0:03:00]}  c5 {[%clk 0:02:59]} 2. Nf3 {[%clk 0:03:00]}  d6 {[%clk 0:03:00]} 3. d4 {[%clk 0:03:01]}  cxd4 {[%clk 0:03:00]} 4. Nxd4 {[%clk 0:03:01]}  Nf6 {[%clk 0:03:00]} 5. Nc3 {[%clk 0:03:02]}  a6 {[%clk 0:03:00]} 6. Be3 {[%clk 0:03:01]}  e5 {[%clk 0:03:01]} 7. Nb3 {[%clk 0:03:02]}  Be7 {[%clk 0:02:59]} 8. f3 {[%clk 0:03:02]}  Be6 {[%clk 0:02:59]} 9. Qd2 {[%clk 0:03:03]}  Nbd7 {[%clk 0:02:59]} 10. O-O-O {[%clk 0:03:03]}  h5 {[%clk 0:02:59]} 11. Nd5 {[%clk 0:02:50]}  Nxd5 {[%clk 0:02:58]} 12. exd5 {[%clk 0:02:51]}  Bf5 {[%clk 0:02:59]} 13. Bd3 {[%clk 0:02:39]}  Bxd3 {[%clk 0:02:59]} 14. Qxd3 {[%clk 0:02:40]}  Bg5 {[%clk 0:02:59]} 15. Kb1 {[%clk 0:02:39]}  Bxe3 {[%clk 0:02:59]} 16. Qxe3 {[%clk 0:02:40]}  Rc8 {[%clk 0:02:58]} 17. f4 {[%clk 0:02:38]}  O-O {[%clk 0:02:57]} 18. f5 {[%clk 0:02:32]}  b5 {[%clk 0:02:57]} 19. g4 {[%clk 0:02:23]}  hxg4 {[%clk 0:02:55]} 20. h3 {[%clk 0:02:23]}  g3 {[%clk 0:02:53]} 21. Qxg3 {[%clk 0:02:22]}  Qf6 {[%clk 0:02:53]} 22. Rhg1 {[%clk 0:02:18]}  e4 {[%clk 0:02:50]} 23. Qf4 {[%clk 0:02:03]}  Rfe8 {[%clk 0:02:48]} 24. h4 {[%clk 0:02:01]}  Kf8 {[%clk 0:02:44]} 25. h5 {[%clk 0:02:01]}  e3 {[%clk 0:02:41]} 26. Rde1 {[%clk 0:01:56]}  Rc4 {[%clk 0:02:40]} 27. Qg3 {[%clk 0:01:54]}  Rce4 {[%clk 0:02:36]} 28. Re2 {[%clk 0:01:36]}  Ne5 {[%clk 0:02:06]} 29. Na5 {[%clk 0:01:15]}  Ra4 {[%clk 0:01:48]} 30. Nb3 {[%clk 0:01:04]}  Nc4 {[%clk 0:01:38]} 31. c3 {[%clk 0:01:04]}  Qxf5+ {[%clk 0:01:31]} 32. Ka1 {[%clk 0:01:01]}  Qf6 {[%clk 0:01:31]} 33. h6 {[%clk 0:00:58]}  Qxh6 {[%clk 0:01:21]} 34. Rh2 {[%clk 0:00:55]}  Qf6 {[%clk 0:01:16]} 35. Re1 {[%clk 0:00:42]}  Ne5 {[%clk 0:01:09]} 36. Qxe3 {[%clk 0:00:38]}  Rf4 {[%clk 0:01:08]} 37. Nd4 {[%clk 0:00:30]}  g6 {[%clk 0:00:59]} 38. Rh8+ {[%clk 0:00:20]}  Qxh8 {[%clk 0:00:54]} 39. Qxf4 {[%clk 0:00:20]}  Qh3 {[%clk 0:00:45]} 40. Qf6 {[%clk 0:00:12]}  Qh5 {[%clk 0:00:16]} 41. Qxd6+ {[%clk 0:00:11]}  Kg8 {[%clk 0:00:16]} 42. a3 {[%clk 0:00:08]}  a5 {[%clk 0:00:13]} 43. Nc6 {[%clk 0:00:06]}  f6 {[%clk 0:00:09]} 44. Ne7+ {[%clk 0:00:05]}  Rxe7 {[%clk 0:00:09]} 45. Qxe7 {[%clk 0:00:05]}  Qf5 {[%clk 0:00:09]} 46. Rh1 {[%clk 0:00:03]}  b4 {[%clk 0:00:09]} 47. d6 {[%clk 0:00:03]}  bxc3 {[%clk 0:00:08]} 48. Qh7+ {[%clk 0:00:04]}  Kf8 {[%clk 0:00:08]} 49. Qe7+ {[%clk 0:00:04]}  Kg8 {[%clk 0:00:09]} 50. Qe8+ {[%clk 0:00:04]}  Kg7 {[%clk 0:00:09]} 51. Qh8+ {[%clk 0:00:05]}  Kf7 {[%clk 0:00:09]} 52. Rh7+ {[%clk 0:00:05]}  Ke6 {[%clk 0:00:10]} 53. Re7+ {[%clk 0:00:04]}  Kxd6 {[%clk 0:00:10]} 54. Qd8+ {[%clk 0:00:05]}  Kc5 {[%clk 0:00:10]} 55. Rc7+ {[%clk 0:00:05]}  Nc6 {[%clk 0:00:10]} 56. Qe7+ {[%clk 0:00:03]}  Kb6 {[%clk 0:00:10]} 57. Rb7+ {[%clk 0:00:03]}  Ka6 {[%clk 0:00:10]} 58. bxc3 {[%clk 0:00:03]}  Qf1+ {[%clk 0:00:10]} 59. Rb1 {[%clk 0:00:03]}  Qc4 {[%clk 0:00:10]} 60. Qe3 {[%clk 0:00:02]}  Nd4 {[%clk 0:00:05]} 61. Qxd4 {[%clk 0:00:02]}  Qc6 {[%clk 0:00:05]} 62. Qd3+ {[%clk 0:00:02]}  Ka7 {[%clk 0:00:06]} 63. Qd4+ {[%clk 0:00:02]}  Ka6 {[%clk 0:00:06]} 64. c4 {[%clk 0:00:03]}  f5 {[%clk 0:00:06]} 65. Qd5 {[%clk 0:00:03]}  Qc7 {[%clk 0:00:05]} 66. Qb5+ {[%clk 0:00:03]}  Ka7 {[%clk 0:00:05]} 67. c5 {[%clk 0:00:03]}  f4 {[%clk 0:00:05]} 68. Qb6+ {[%clk 0:00:04]}  Qxb6 {[%clk 0:00:05]} 69. cxb6+ {[%clk 0:00:03]}  Kb7 {[%clk 0:00:06]} 70. Rg1 {[%clk 0:00:03]}  Kxb6 {[%clk 0:00:05]} 71. Rxg6+ {[%clk 0:00:04]}  Kc5 {[%clk 0:00:06]} 72. Rf6 {[%clk 0:00:05]}  Kc4 {[%clk 0:00:07]} 73. Rxf4+ {[%clk 0:00:05]}  Kb3 {[%clk 0:00:07]} 74. a4 {[%clk 0:00:05]}  Ka3 {[%clk 0:00:08]} 75. Rf3+ {[%clk 0:00:04]}  Kxa4 {[%clk 0:00:08]} 76. Rh3 {[%clk 0:00:05]}  Kb4 {[%clk 0:00:06]} 77. Rh7 {[%clk 0:00:06]}  a4 {[%clk 0:00:06]} 78. Rh8 {[%clk 0:00:07]} 1-0


[Site "https://www.chess.com"]